Workbook

Sheet Mestaruussarja
B1: Erkki Tiihonen | E1: 10.10.1962
B2: MESTARUUSSARJA | E2: Runkosarja | I2: Kärkilyönnit (KL), pesänvälit | P2: Ylempi loppusarja | W2: Alempi loppusarja | AD2: Arvo-ottelut | AH2: Mitalit
B3: Vuosi | C3: Sija | D3: Seura | E3: OTT | F3: KUN | G3: LÖI | H3: TOI | I3: KL | J3: 0 > 1 | K3: 1 > 2 | L3: 2 > 3 | M3: 3 > k | N3: KL-% | P3: OTT | Q3: KUN | R3: LÖI | S3: TOI | T3: KL | U3: KL-% | W3: OTT | X3: KUN | Y3: LÖI | Z3: TOI | AA3: KL | AB3: KL-% | AD3: IL | AE3: LL | AF3: Cup | AG3: K | AH3: H | AI3: P
B4: 1982 | C4: 10. | D4: Lohi | E4: 16 | F4: 0 | G4: 5 | H4: 5 | I4: 37 | J4: 16 | K4: 5 | L4: 11 | M4: 5 | N4: 46.3 % | W4: 4 | X4: 0 | Y4: 0 | Z4: 0 | AA4: 3 | AB4: 37.5 %
B5: 1983 | C5: 11. | D5: Lohi | F5: ykkössarja
B6: 1984 | C6: 1. | D6: Lohi | F6: suomensarja
B7: 1985 | C7: 8. | D7: Lohi | F7: ykkössarja
B8: 1986 | C8: 5. | D8: Lohi | F8: ykkössarja
B9: 1987 | C9: 9. | D9: Lohi | F9: ykkössarja
B10: 1988 | C10: 7. | D10: Lohi | F10: ykkössarja
B11: 1989 | C11: 12. | D11: Lohi | F11: ykkössarja
B12: 1990 | C12: 7. | D12: Lohi | F12: suomensarja
B13: 1991
B14: 1992 | C14: 12. | D14: Lohi | F14: suomensarja
B15: Yhteensä | E15: 16 | F15: 0 | G15: 5 | H15: 5 | I15: 37 | J15: 16 | K15: 5 | L15: 11 | M15: 5 | N15: 46.3 % | P15: =SUM(P9:P11) -> 0 | Q15: =SUM(Q9:Q11) -> 0 | R15: =SUM(R9:R11) -> 0 | S15: =SUM(S9:S11) -> 0 | T15: =SUM(T9:T11) -> 0 | U15: 0.0 % | W15: =PRODUCT(E21) -> 4 | X15: =PRODUCT(F21) -> 0 | Y15: 0 | Z15: 0 | AA15: 3 | AB15: =PRODUCT(N21) -> 37.5 % | AD15: 0 | AE15: 0 | AF15: 0 | AG15: 0 | AH15: 0 | AI15: 0
B16: Pesispörssi | D16: 26.0
B18: URA SM-SARJASSA | E18: OTT | F18: KUN | G18: LÖI | H18: TOI | I18: KL | K18: ka/L | L18: ka/T | M18: ka/KL | N18: KL-% | P18: ENSIMMÄISET RUNKOSARJASSA
B19: Runkosarja | E19: 16 | F19: 0 | G19: 5 | H19: 5 | I19: 37 | K19: 0.31 | L19: 0.31 | M19: 2.31 | N19: 46.3 % | P19: Ottelu | R19: 02.05. 1982 Lohi - KaMa 10-9 | Y19: 1. ottelu | AA19: 19 v 6 kk 22 pv
B20: Ylempi loppusarja | P20: Lyöty | R20: 02.05. 1982 Lohi - KaMa 10-9 | Y20: 1. ottelu | AA20: 19 v 6 kk 22 pv
B21: Alempi loppusarja | E21: 4 | F21: 0 | G21: 0 | H21: 0 | I21: 3 | K21: 0.00 | L21: 0.00 | M21: 0.75 | N21: 37.5 % | P21: Tuotu | R21: 27.05. 1982 Lohi - Lippo 8-8 | Y21: 6. ottelu | AA21: 19 v 7 kk 17 pv
B22: KAIKKI | E22: 20 | F22: 0 | G22: 5 | H22: 5 | I22: 40 | K22: 0.25 | L22: 0.25 | M22: 2.00 | N22: 45.5 % | P22: Kunnari
B24: Seurat | D24: Lohi = Jyväskylän Lohi (1924)

Sheet MYP, MSS
B1: Erkki Tiihonen | E1: 10.10.1962
B2: YKKÖSPESIS | E2: Runkosarja | L2: Runkosarja TOP-10 | Q2: Jatkosarjat | X2: SUOMENSARJA | AA2: Runkosarja | AH2: Runkosarja TOP-10 | AM2: Jatkosarjat
B3: Vuosi | C3: Sija | D3: Seura | E3: OTT | F3: KUN | G3: LÖI | H3: TOI | I3: KL | J3: KL-% | L3: LÖI | M3: TOI | N3: L+T | O3: KL | Q3: OTT | R3: KUN | S3: LÖI | T3: TOI | U3: KL | V3: KL-% | X3: Vuosi | Y3: Sija | Z3: Seura | AA3: OTT | AB3: KUN | AC3: LÖI | AD3: TOI | AE3: KL | AF3: KL-% | AH3: LÖI | AI3: TOI | AJ3: L+T | AK3: KL | AM3: OTT | AN3: KUN | AO3: LÖI | AP3: TOI | AQ3: KL | AR3: KL-%
B4: 1983 | C4: 11. | D4: Lohi | E4: 7 | F4: 0 | G4: 1 | H4: 3 | Q4: 9 | R4: 0 | S4: 3 | T4: 4
X5: 1984 | Y5: 1. | Z5: Lohi | AA5: 18 | AB5: 1 | AC5: 15 | AD5: 23
B7: 1986 | C7: 5. | D7: Lohi | E7: 3 | F7: 1 | G7: 1 | H7: 1
B8: 1987 | C8: 9. | D8: Lohi | E8: 21 | F8: 0 | G8: 10 | H8: 10
B9: 1988 | C9: 7. | D9: Lohi | E9: 22 | F9: 0 | G9: 10 | H9: 9
B10: 1989 | C10: 12. | D10: Lohi | E10: 22 | F10: 0 | G10: 8 | H10: 4
X11: 1990 | Y11: 7. | Z11: Lohi | AA11: 21 | AB11: 3 | AC11: 37 | AD11: 17 | AH11: 2. | AJ11: 5.
X13: 1992 | Y13: 12. | Z13: Lohi | AA13: 21 | AB13: 1 | AC13: 23 | AD13: 7
B14: YHTEENSÄ | E14: =SUM(E4:E13) -> 75 | F14: =SUM(F4:F13) -> 1 | G14: =SUM(G4:G13) -> 30 | H14: =SUM(H4:H13) -> 27 | I14: =SUM(I4:I13) -> 0 | J14: 0.0 % | K14: =SUM(K4:K13) -> 0 | Q14: =SUM(Q4:Q13) -> 9 | R14: =SUM(R4:R13) -> 0 | S14: =SUM(S4:S13) -> 3 | T14: =SUM(T4:T13) -> 4 | U14: =SUM(U4:U13) -> 0 | V14: 0.0 % | W14: =SUM(W4:W13) -> 0 | X14: YHTEENSÄ | AA14: =SUM(AA4:AA13) -> 60 | AB14: =SUM(AB4:AB13) -> 5 | AC14: =SUM(AC4:AC13) -> 75 | AD14: =SUM(AD4:AD13) -> 47 | AE14: =SUM(AE4:AE13) -> 0 | AF14: 0.0 % | AG14: =SUM(AG4:AG13) -> 0 | AM14: =SUM(AM4:AM13) -> 0 | AN14: =SUM(AN4:AN13) -> 0 | AO14: =SUM(AO4:AO13) -> 0 | AP14: =SUM(AP4:AP13) -> 0 | AQ14: =SUM(AQ4:AQ13) -> 0 | AR14: 0.0 % | AS14: =SUM(AS4:AS13) -> 0
B16: KAIKKI OTTELUT | E16: OTT | F16: KUN | G16: LÖI | H16: TOI | I16: KL | J16: KL-% | L16: ka/L | M16: ka/T | N16: ka/l+t | O16: ka/kl | R16: Seurat | T16: Lohi = Jyväskylän Lohi (1924)
B17: SUPERPESIS | E17: 20 | F17: 0 | G17: 5 | H17: 5 | I17: 40 | J17: 45.5 % | K17: =PRODUCT(I17/J17) -> 87.91208791 | L17: =PRODUCT((F17+G17)/E17) -> 0.25 | M17: =PRODUCT(H17/E17) -> 0.25 | N17: =PRODUCT((F17+G17+H17)/E17) -> 0.50 | O17: =PRODUCT(I17/E17) -> 2.00
B18: YKKÖSPESIS | E18: =PRODUCT(E14+Q14) -> 84 | F18: =PRODUCT(F14+R14) -> 1 | G18: =PRODUCT(G14+S14) -> 33 | H18: =PRODUCT(H14+T14) -> 31 | I18: =PRODUCT(I14+U14) -> 0 | J18: 0.0 % | K18: 0 | L18: =PRODUCT((F18+G18)/E18) -> 0.40 | M18: =PRODUCT(H18/E18) -> 0.37 | N18: =PRODUCT((F18+G18+H18)/E18) -> 0.77 | O18: =PRODUCT(I18/E18) -> 0.00
B19: SUOMENSARJA | E19: =PRODUCT(AA14+AM14) -> 60 | F19: =PRODUCT(AB14+AN14) -> 5 | G19: =PRODUCT(AC14+AO14) -> 75 | H19: =PRODUCT(AD14+AP14) -> 47 | I19: =PRODUCT(AE14+AQ14) -> 0 | J19: 0.0 % | K19: 0 | L19: =PRODUCT((F19+G19)/E19) -> 1.33 | M19: =PRODUCT(H19/E19) -> 0.78 | N19: =PRODUCT((F19+G19+H19)/E19) -> 2.12 | O19: =PRODUCT(I19/E19) -> 0.00
B20: YHTEENSÄ | E20: =SUM(E17:E19) -> 164 | F20: =SUM(F17:F19) -> 6 | G20: 113 | H20: 83 | I20: 40 | J20: 0.0 % | K20: =SUM(K17:K19) -> 87.91208791 | L20: =PRODUCT((F20+G20)/E20) -> 0.73 | M20: =PRODUCT(H20/E20) -> 0.51 | N20: =PRODUCT((F20+G20+H20)/E20) -> 1.23 | O20: 2.00
